Cogmind - Beta 13 @@@ ROGUE MODE // 2024.04.05 @ 11:30:50 Player: Papweer Result: Destroyed by Q0-QDD(z) with Makeshift Spear Performance ------------- Evolutions (1) 500 Regions Visited (5) 1000 Robots Destroyed (38) 190 Value Destroyed (920) 920 Prototype IDs (2) 40 Alien Tech Used (0) 0 Bonus (-221) -221 TOTAL SCORE: 2429 Bonus ------- High Alert Combat Kills 33 Friendly Fire -254 Cogmind --------- Core Integrity 0/400 Matter 197/300 Energy 20/100 System Corruption 0% Temperature Cool (25) Movement Treading (160) Location -7/Zion Parts ------- > --- POWER (1) -------- (None) > --- PROPULSION (3) --- Improved Treads > --- UTILITY (3) ------ Large Storage Unit Weight Redist. System Signal Interpreter > --- WEAPON (2) ------- Improved Light Cannon Improved Light Cannon > --- INVENTORY (15) --- Ion Engine Light Nuclear Core Improved Heat Sink Huge Storage Unit Structural Scanner Improved Sensor Array System Shield High-powered Tractor Beam Peak State ------------ > --- POWER ------------ Ion Engine > --- PROPULSION ------- Improved Treads Improved Treads Improved Treads > --- UTILITY ---------- Large Storage Unit Weight Redist. System Signal Interpreter > --- WEAPON ----------- Improved Light Cannon Mini Grenade Launcher > --- INVENTORY -------- Ion Engine Ion Engine Light Nuclear Core Improved Treads Improved Heat Sink Huge Storage Unit Structural Scanner Improved Sensor Array System Shield Improved Light Cannon Improved Light Cannon [Rating: 17] Favorites ----------- Power Ion Engine Engine Ion Engine Propulsion Improved Treads Treads Improved Treads Utility Large Storage Unit Device Weight Redist. System Storage Large Storage Unit Processor Signal Interpreter Protection Core Shielding Weapon Improved Light Cannon Energy Gun Medium Laser Ballistic Gun Assault Rifle Ballistic Cannon Improved Light Cannon Launcher Grenade Launcher Build | -11 -10 -10 -9 -9 -7 ------- Run | Yrd Mat Min Mat Min Zio Slots Evolved 2 | . . . 2 . . Power . | . . . . . . Propulsion 1 | . . . 1 . . Utility 1 | . . . 1 . . Weapon . | . . . . . . Parts Attached 31 | 6 15 1 5 2 2 Power 3 | 1 . 1 . 1 . Engine 3 | 1 . 1 . 1 . Core . | . . . . . . Reactor . | . . . . . . Propulsion 8 | 2 4 . 1 1 . Treads 8 | 2 4 . 1 1 . Leg . | . . . . . . Wheel . | . . . . . . Hover . | . . . . . . Flight . | . . . . . . Utility 9 | 1 6 . 2 . . Device 2 | . . . 2 . . Storage 4 | 1 3 . . . . Processor 2 | . 2 . . . . Hackware . | . . . . . . Protection 1 | . 1 . . . . Artifact . | . . . . . . Weapon 11 | 2 5 . 2 . 2 Energy Gun 1 | 1 . . . . . Energy Cannon . | . . . . . . Ballistic Gun 1 | 1 . . . . . Ballistic Cannon 7 | . 4 . 1 . 2 Launcher 2 | . 1 . 1 . . Special Weapon . | . . . . . . Impact Weapon . | . . . . . . Slashing Weapon . | . . . . . . Piercing Weapon . | . . . . . . Special Melee Weapon . | . . . . . . Unidentified Prototypes . | . . . . . . Parts Lost 8 | . . . 3 . 5 Power 2 | . . . 1 . 1 Propulsion 3 | . . . 1 . 2 Utility . | . . . . . . Weapon 3 | . . . 1 . 2 Highest Loss Streak 5 | . . . 2 . 5 To Critical Strikes . | . . . . . . Average Slot Usage (%) 97 | . 97 100 90 96 97 Engine 12 | . 14 14 9 7 10 Treads 28 | . 28 28 26 33 32 Device 4 | . . . 10 11 11 Storage 12 | . 13 14 11 11 11 Processor 11 | . 9 14 11 11 11 Protection 1 | . 2 . . . . Energy Gun 2 | . 7 . . . . Ballistic Gun 2 | . 7 . . . . Ballistic Cannon 11 | . 9 14 11 11 11 Launcher 8 | . 4 14 10 11 10 Naked Turns . | . . . . . . Heaviest Build 93 | 14 93 32 33 30 30 Greatest Support 75 | 40 46 46 75 75 75 Greatest Overweight (x) 2 | 1 2 . . . . Average Overweight (x) . | . . . . . . Largest Inventory Capacity 25 | 8 25 15 15 15 15 Average Capacity 13 | 6 12 15 15 15 15 Most Carried 14 | 5 11 12 14 11 10 Average Carried 9 | 1 7 10 11 10 9 Final Capacity 15 | 8 15 15 15 15 15 Final Carried 12 | 1 10 11 12 10 8 Class Distribution -------------------- 100% | Mutant Dominant Class ---------------- Mutant | -10/Materials Mutant | -10/Mines Mutant | -9/Materials Mutant | -9/Mines Mutant | -7/Zion Resources | -11 -10 -10 -9 -9 -7 ----------- Run | Yrd Mat Min Mat Min Zio Matter Collected 948 | 189 302 107 237 113 . Remotely . | . . . . . . Salvage Created 857 | . 380 . 385 61 31 Parts 65 | . 27 . 29 . 9 Haulers Intercepted 2 | . 1 . 1 . . Recyclers Shooed 1 | . . . 1 . . Parts Field Recycled . | . . . . . . Retrieved Matter . | . . . . . . Parts Self-Destructed . | . . . . . . Prevented . | . . . . . . Kills | -11 -10 -10 -9 -9 -7 ------- Run | Yrd Mat Min Mat Min Zio Combat Hostiles Destroyed 25 | . 9 1 14 1 . Guns 7 | . 7 . . . . Cannons 6 | . . . 6 . . AOE 12 | . 2 1 8 1 . Classes Destroyed 8 | . 4 . 3 . 1 Hauler 2 | . 1 . 1 . . Operator 1 | . . . 1 . . Watcher 4 | . 3 . 1 . . Swarmer 7 | . 3 1 3 . . Grunt 14 | . 6 . 8 . . Brawler 1 | . . . 1 . . Sentry 3 | . . . 2 1 . Zionite 5 | . . . . . 5 Thug 1 | . . . . 1 . Best Kill Streak 6 | . 3 1 6 1 5 Combat Bots Only 6 | . 2 1 6 1 . Max Kills in Single Turn 3 | . 1 1 3 2 3 Gunslinging . | . . . . . . Exploded 3 | . 1 1 3 1 . Melee . | . . . . . . Uniques/NPCs Destroyed . | . . . . . . Combat | -11 -10 -10 -9 -9 -7 -------- Run | Yrd Mat Min Mat Min Zio Hostile Shots Fired 243 | . 61 4 74 . 104 Missed 84 | . 20 . 24 . 40 Damage Taken 2232 | . 436 75 628 . 1093 Core 469 | . 54 . 109 . 306 Absorbed by Shields . | . . . . . . Redirected to Shielding 6 | . 6 . . . . Core Remaining (%) 89 | 100 . 78 . . . Volleys Fired 82 | . 36 3 33 2 8 Largest 2 | . 2 2 2 2 2 Hottest 78 | . 78 69 69 69 78 Shots Fired 145 | . 71 6 48 4 16 Gun 60 | . 60 . . . . Cannon 59 | . 9 3 33 2 12 Launcher 26 | . 2 3 15 2 4 Special . | . . . . . . Kinetic 89 | . 39 3 33 2 12 Thermal 30 | . 30 . . . . Explosive 26 | . 2 3 15 2 4 Electromagnetic . | . . . . . . Robot Hit Streak 8 | . 8 1 7 6 5 Robot Miss Streak 5 | . 3 5 2 . 3 Penetration Max . | . . . . . . Secondary Targets 3 | . 3 . . . . Max Gunslinging Chain 1 | . 1 . . . . Shots Hit Robots 87 | . 43 1 30 4 9 Core Hits 57 | . 19 1 25 5 7 Critical Kills . | . . . . . . Critical Parts Destroyed 1 | . 1 . . . . Critical Strikes 6 | . 6 . . . . Burn 5 | . 5 . . . . Destroy 1 | . 1 . . . . Melee Attacks . | . . . . . . Impact . | . . . . . . Slashing . | . . . . . . Piercing . | . . . . . . Sneak Attacks . | . . . . . . Combat Hostiles . | . . . . . . Follow-up Attacks . | . . . . . . Damage Inflicted 2834 | . 694 178 1135 183 644 Guns 447 | . 447 . . . . Cannons 751 | . 150 . 419 37 145 Explosions 1629 | . 97 174 716 143 499 Melee . | . . . . . . Ramming 7 | . . 4 . 3 . Kinetic 970 | . 369 . 419 37 145 Thermal 228 | . 228 . . . . Explosive 1629 | . 97 174 716 143 499 Electromagnetic . | . . . . . . Impact . | . . . . . . Slashing . | . . . . . . Piercing . | . . . . . . Highest Corruption . | . . . . . . Average Corruption . | . . . . . . Corruption Purged . | . . . . . . Corruption Blocked . | . . . . . . Overload Shots . | . . . . . . Overflow Damage 67 | . . 30 24 . 13 Projectiles 18 | . . . 18 . . Explosions 49 | . . 30 6 . 13 Melee . | . . . . . . Knockbacks 7 | . 2 . 2 . 3 Impact . | . . . . . . Kinetic 7 | . 2 . 2 . 3 Secondary . | . . . . . . Self-Inflicted Damage 237 | . 17 43 79 . 98 Shots 10 | . 1 2 4 . 3 Rammed 2 | . . 1 . 1 . Targets Rammed 2 | . . 1 . 1 . Kicked . | . . . . . . Crushed . | . . . . . . Highest Temperature 138 | . 138 27 20 . 22 Average Temperature 39 | . 49 14 6 . 11 Received Heat Transfer 402 | . 123 . 180 . 99 Siege Activations . | . . . . . . Robots Corrupted . | . . . . . . Combat Hostiles . | . . . . . . Parts Fried . | . . . . . . Impact Corruptions . | . . . . . . Robots Melted . | . . . . . . Combat Hostiles . | . . . . . . Parts Melted 4 | . 3 . . 1 . Heat Transferred 1036 | . 1036 . . . . Parts Sabotaged . | . . . . . . Parts Stolen . | . . . . . . Parts Stripped . | . . . . . . Power Chain Reactions . | . . . . . . Alert | -11 -10 -10 -9 -9 -7 ------- Run | Yrd Mat Min Mat Min Zio Peak Influence 494 | . 213 53 494 196 . Initial 140 | . . . 20 140 . Average 87 | . 40 16 288 188 . Maximum Alert Level 2 | . 1 . 2 . . Low Security (%) 85 | 100 97 100 32 100 . Level 1 8 | . 2 . 41 . . Level 2 5 | . . . 26 . . Level 3 . | . . . . . . Level 4 . | . . . . . . Level 5 . | . . . . . . High Security . | . . . . . . Max Security . | . . . . . . Squads Dispatched 7 | . 1 1 5 . . Investigation 4 | . . 1 3 . . Extermination . | . . . . . . Reinforcement 3 | . 1 . 2 . . Assault . | . . . . . . Garrison . | . . . . . . Intercept . | . . . . . . Searches Triggered . | . . . . . . Construction Impeded . | . . . . . . Haulers Reinforced . | . . . . . . Active Scanning Responses . | . . . . . . Cargo Convoy Interrupts . | . . . . . . Stealth | -11 -10 -10 -9 -9 -7 --------- Run | Yrd Mat Min Mat Min Zio Distress Signals 1 | . 1 . . . . Communications Jammed . | . . . . . . Distress Signals . | . . . . . . Times Spotted 46 | . 14 1 20 1 10 Peak Tracking Total 9 | . 4 1 7 1 9 Tactical Retreats . | . . . . . . Traps | -11 -10 -10 -9 -9 -7 ------- Run | Yrd Mat Min Mat Min Zio Traps Triggered 1 | . . . 1 . . Indirectly . | . . . . . . Trap Hack Attempts . | . . . . . . Triggered . | . . . . . . Disarmed . | . . . . . . Reprogrammed . | . . . . . . Reused . | . . . . . . Traps Extracted . | . . . . . . Installed . | . . . . . . Triggered . | . . . . . . Machines | -11 -10 -10 -9 -9 -7 ---------- Run | Yrd Mat Min Mat Min Zio Machines Disabled 4 | . . . 3 1 . Max in Single Turn 2 | . . . 2 1 . Machines Repaired . | . . . . . . Machines Dismantled . | . . . . . . Machines Sabotaged . | . . . . . . Overloaded Fab Kills . | . . . . . . Hacking | -11 -10 -10 -9 -9 -7 --------- Run | Yrd Mat Min Mat Min Zio Machines Accessed 11 | . 5 1 4 . 1 Terminals 9 | . 5 . 4 . . Fabricators . | . . . . . . Repair Stations . | . . . . . . Recycling Units . | . . . . . . Scanalyzers . | . . . . . . Garrison Access . | . . . . . . Total Hacks 29 | . 13 1 11 . 4 Successful 21 | . 8 1 8 . 4 Failed 8 | . 5 . 3 . . Catastrophic . | . . . . . . Database Lockouts . | . . . . . . Manual . | . . . . . . Terminals 24 | . 13 . 11 . . Fabricators . | . . . . . . Repair Stations . | . . . . . . Recycling Units . | . . . . . . Scanalyzers . | . . . . . . Garrison Access . | . . . . . . Terminal Hacks 21 | . 8 1 8 . 4 Record 2 | . . . 2 . . Part Schematic 4 | . . . . . 4 Prototype ID Bank 1 | . 1 . . . . Open Door 1 | . . 1 . . . Emergency Access Points 1 | . . . 1 . . Alert Level 1 | . 1 . . . . Unreport Threat 1 | . 1 . . . . Locate Traps 3 | . 1 . 2 . . Dispatch Records 3 | . 2 . 1 . . Transport Status 1 | . 1 . . . . Investigation Status 1 | . . . 1 . . Reinforcement Status 1 | . 1 . . . . Zone Layout 1 | . . . 1 . . Fabricator Hacks . | . . . . . . Repair Station Hacks . | . . . . . . Recycling Unit Hacks . | . . . . . . Scanalyzer . | . . . . . . Garrison Access Hacks . | . . . . . . Unauthorized Hacks . | . . . . . . Terminals . | . . . . . . Fabricators . | . . . . . . Repair Stations . | . . . . . . Recycling Units . | . . . . . . Scanalyzers . | . . . . . . Garrison Access . | . . . . . . Data Cores Recovered . | . . . . . . Used . | . . . . . . Hacking Detections 7 | . 4 . 3 . . Full Trace Events 3 | . 1 . 2 . . Feedback Events . | . . . . . . Feedback Blocked . | . . . . . . Robot Schematics Acquired 3 | . . . . . 3 Robots Built . | . . . . . . Authchips . | . . . . . . Time . | . . . . . . Total Robot Build Rating . | . . . . . . Part Schematics Acquired 18 | . . . . . 18 Parts Built . | . . . . . . Authchips . | . . . . . . Time . | . . . . . . Total Part Build Rating . | . . . . . . Parts Repaired . | . . . . . . Time . | . . . . . . Parts Recycled . | . . . . . . Recycled Matter . | . . . . . . Retrieved Matter . | . . . . . . Retrieved Components . | . . . . . . Parts Scanalyzed . | . . . . . . Part Schematics Acquired . | . . . . . . Parts Damaged . | . . . . . . Bothacking | -11 -10 -10 -9 -9 -7 ------------ Run | Yrd Mat Min Mat Min Zio Used RIF Installer . | . . . . . . Robots Hacked . | . . . . . . Non-combat . | . . . . . . Combat . | . . . . . . Robot Hacks Applied . | . . . . . . Relay Couplers Released . | . . . . . . Fabnet Peak Effective % . | . . . . . . Robots Rewired . | . . . . . . Allies Hacked . | . . . . . . Hacks Repelled . | . . . . . . Allies | -11 -10 -10 -9 -9 -7 -------- Run | Yrd Mat Min Mat Min Zio Total Allies . | . . . . . . Largest Group . | . . . . . . Highest-Rated Group . | . . . . . . Highest-Rated Ally . | . . . . . . Total Orders . | . . . . . . Ally Attacks . | . . . . . . Total Damage . | . . . . . . Kills . | . . . . . . Allies Corrupted . | . . . . . . Allies Melted . | . . . . . . Intel | -11 -10 -10 -9 -9 -7 ------- Run | Yrd Mat Min Mat Min Zio Robot Analysis Total . | . . . . . . Derelict Logs Recovered 1 | . . 1 . . . Drone Launches . | . . . . . . Drone Recoveries . | . . . . . . Exploration | -11 -10 -10 -9 -9 -7 ------------- Run | Yrd Mat Min Mat Min Zio Turns Passed 3302 | 74 1277 740 533 123 555 Spaces Moved 1856 | 62 687 446 276 54 331 Core 40 | 40 . . . . . Treads 1816 | 22 687 446 276 54 331 Legs . | . . . . . . Wheels . | . . . . . . Hover . | . . . . . . Flight . | . . . . . . Fastest Speed 50 | 50 160 160 160 160 160 Average Speed 158 | 100 160 160 160 160 160 Slowest Speed 320 | 160 320 160 160 160 160 Overloaded Moves . | . . . . . . Propulsion Burnouts . | . . . . . . Robots Hopped . | . . . . . . Cave-ins Triggered . | . . . . . . Exploration Rate (%) 39 | 4 85 72 32 14 29 Regions Visited 5 Branch Regions 3 Pre-discovered Areas . | . . . . . . Known Exits Taken 4 | . 1 1 1 1 . Unknown Exits Taken 1 | 1 . . . . . Scrap Searched 1 | . . 1 . . . Spaces Dug . | . . . . . . Terrain Destroyed 162 | . 13 23 101 23 2 Melee . | . . . . . . Projectile 3 | . . 2 1 . . AOE 159 | . 13 21 100 23 2 Terrain Rammed . | . . . . . . Walls Destroyed . | . . . . . . Machines Disabled . | . . . . . . Actions | -11 -10 -10 -9 -9 -7 --------- Run | Yrd Mat Min Mat Min Zio Total 2091 | 74 803 466 321 86 341 Wait 43 | . 1 13 1 28 . Move 1851 | 61 686 445 275 53 331 Hop . | . . . . . . Pick Up 51 | 7 37 2 5 . . Fast Attach . | . . . . . . Attach 31 | 6 15 1 5 2 2 Detach 3 | . 2 . 1 . . Swap . | . . . . . . Drop 28 | . 26 1 1 . . Fire 82 | . 36 3 33 2 8 Melee . | . . . . . . Ram . | . . . . . . Kick . | . . . . . . Crush 2 | . . 1 . 1 . Escape Stasis . | . . . . . . Rewire . | . . . . . . Trap . | . . . . . . Miscellaneous . | . . . . . . Route ------- -11/Scrapyard -10/Materials (discovered 4 exits: *Mat x3 / *Min) -10/Mines -9/Materials (discovered 3 exits: *Min x2 / *Sto) -9/Mines -7/Zion (discovered 1 exit: *Pro) History --------- Turn | Location | Event 3 | -11/Scrapyard | Discovered new exit (range 15) 75 | -11/Scrapyard | Entered Materials 315 | -10/Materials | Build established: Mutant 568 | -10/Materials | Discovered new exit (range 16) 798 | -10/Materials | Discovered new exit (range 7) 954 | -10/Materials | Discovered new exit (range 3) 1101 | -10/Materials | Discovered new exit (range 16) 1133 | -10/Materials | Identified exit to Materials 1283 | -10/Materials | Identified exit to Mines 1352 | -10/Materials | Entered Mines 1382 | -10/Mines | Met a Derelict bent on vengeance 1731 | -10/Mines | Met a Derelict shopkeep closing up shop 1919 | -10/Mines | Discovered exit to Materials (range 7) 1994 | -10/Mines | Learned location of 1 exit from Materials 2092 | -10/Mines | Entered Materials 2092 | -9/Materials | Evolved 2 slots: Propulsion x1, Utility x1 2092 | -9/Materials | Discovered new exit (range 7) 2093 | -9/Materials | Identified exit to Mines 2102 | -9/Materials | Identified exit to Storage 2317 | -9/Materials | Discovered exit to Mines (range 14) 2625 | -9/Materials | Entered Mines 2638 | -9/Mines | Joined a pair of Derelicts in attacking an 0b10 outpost 2736 | -9/Mines | A Derelict revealed a hidden shortcut to a safe place 2746 | -9/Mines | Identified exit to Zion 2748 | -9/Mines | Entered Zion 2864 | -7/Zion | Acquired unknown access codes intercepted by a Zionite 2868 | -7/Zion | Discovered new exit (range 16) 2891 | -7/Zion | Identified exit to Proximity Caves 3236 | -7/Zion | Given A8's code to call for help 3244 | -7/Zion | Attacked by Zionites 3290 | -7/Zion | Core integrity fell below 50% 3299 | -7/Zion | Core integrity fell below 20% 3303 | -7/Zion | Destroyed by Q0-QDD(z) with Makeshift Spear Last Messages --------------- 03281_ ND-20S(z) destroyed. 03283_ Imp. Treads destroyed. 03284_ Destroyed Mak. Shrapnel Gun. 03284_ MJ-VD4(z) destroyed. 03286_ 7S-79K(z) pulls a Mak. Axe out of the Twisted Machinery. 03287_ LQ-ZY9(z) destroyed. 03287_ Mni. Grenade Launcher destroyed. 03287_ Destroyed Mni. Grenade Launcher. 03287_ C7-P0W(z) destroyed. 03289_ Imp. Light Cannon destroyed. 03291_ Critical hit (Burn: +37). 03292_ 7S-79K(z) knocked back. 03295_ Q0-QDD(z) emerges from the Twisted Machinery. 03295_ 7S-79K(z) knocked back. 03296_ Q0-QDD(z) pulls a Mak. Spear out of the Twisted Machinery. 03301_ 7S-79K(z) destroyed. 03301_ Q0-QDD(z) knocked back. Map ----- +----------------------------------------------------+ | ?????????????????????????????????????????????????? | | ?????????????????????????????????????????????????? | | ?????????????????????????????????????????????????? | | ?????????????????????????????????????????????????? | | ?????????????????????????????????????????????????? | | ?????????????????????????????????????????????????? | | ?????????????????????????????????????????????????? | | ?????????????????????????????????????????????????? | | ?????????????????????????????????????????????????? | | ?????????????????????????????????????????????????? | | ?????????????????????????????????????????????????? | | ?????????????????????????????????????????????????? | | ?????????????????????????????????????????????????? | | ?????????????????????????????????????????????????? | | ?????????????????????????????????????????????????? | | ?????????????????""?""???????????????????????????? | | ?????????????????""""""?#? ?????????????????????? | | ?????????????????"" """""#"#??????""? ???????????? | | ???????????????"""" """"##?# ? " ??????????? | | ???????????????"""" """""##" ??????????? | | ??????????????""" "" """#" ??????????? | | ???????????????" z """" ?????????? | | ????????????????" g ?????????? | | ????????????????"""" ????????? | | ????????????????"""" ????????? | | ????????????????""" ""/@ ????????? | | ???????????????#"" ""z= """ ""??????????? | | ???????????????""" " ==%% """???????????????? | | ?????????????"""" """*% = #""??????????????? | | ????????????? % " "#""???""??????????? | | ?????????????? """ ""#?#"""""""#"??????? | | ????????????""" """"" #""""""""""#"?????? | | ??????????? "#""""" ""#?????? | | ?????????? " """" ""?????? | | ??????????? """"" ""?????? | | ??????????? """###" " """" "??????? | | ???????????????"?"""" """" ""??????? | | ?????????????????""""" """" """??????? | | ?????????????????"#""" """" """#??????? | | ??????????????????##"" """ ""#???????? | | ???????????????????#""" " """#???????? | | ??????????????????#"" " " """#???????? | | ?????????????????#"" """#???????? | | ?????????????????##"" " ""#???????? | | ??????????????????## " ""##??????? | | ??????????????????#"" " """#??????? | | ??????????????????##"" "##??##### | | ???????????????????##"# " """ ""#???# "# | | ????????????????????##"" # ""####?# "" | | ?????????????????????##" """" """"#"### "" | +----------------------------------------------------+ Best States ------------- Heat Dissipation 28 Energy Generation 10 Energy Capacity 250 Matter Stores 300 Matter Capacity 300 Sight Range 18 Robot Scan Range 15 Terrain Scan Density 10 Additional Mass Support 6 Core Shielding 20 Evasion (%) 50 Recoil Reduction 3 Item Schematics ----------------- Beamcaster | -7/Zion | Free Riot Gun | -7/Zion | Free Battle Rifle | -7/Zion | Free Slug Cannon | -7/Zion | Free Imp. Cryofiber Web | -7/Zion | Archive Recalibrator | -7/Zion | Archive Phasing Sabre | -7/Zion | Archive Spear | -7/Zion | Archive Nuclear Pulse Thruster | -7/Zion | Archive Flak Gun | -7/Zion | Archive Power Sword | -7/Zion | Archive Mak. Sword | -7/Zion | Archive Matter Compressor | -7/Zion | Archive Mak. Hammer | -7/Zion | Archive Imp. Thermal Shield | -7/Zion | Archive Coil Gun | -7/Zion | Archive Microactuators | -7/Zion | Archive Remote Shield | -7/Zion | Archive Robot Schematics ------------------ S-27 Virus | -7/Zion | Archive A-02 Transporter | -7/Zion | Archive T-07 Excavator | -7/Zion | Archive Fabricated ------------ Nothing Alien Tech Used ----------------- None Achievements -------------- Backstab Everything Is Under Control Let's See Who's Tougher Loot Pinata Robot Respite Storm Trooper Tourist Uninvited Guest Challenges ------------ None Game ------ Seed BombardmentInertialSaw Manual? 0 Play Time 00:43:27 Cumulative 2.0 hours Start 2024.04.05 @ 10:45:56 End 2024.04.05 @ 11:30:50 Sessions 1 Manual Loads 0 Difficulty Rogue Special Mode None Game No. 3 Rogue 1 Adventurer 2 Explorer 0 Win Type - Total 0 Types 0/0/0/0/0/0/0/0/0 Lore% 2 Gallery% 3 Achievement% 5 Wizard Run 0 Options --------- Layout 1 ASCII 0 Keyboard 0 Movement Mouse Keybinds 0 Fullscreen 2 Font 24/Smallcaps Map View 50x35 Zoom Use 0% Tactical HUD 1 Map Filters NONE Filters NONE Steam 0 RUN: 7ee44c22-361c-4aa5-95dd-67c975989029